[Event "Titled Tuesday Blitz July 25 Early 2023"]
[White "Ncatt"]
[Black "Kochiev, Ivan"]
[BlackFideId "2917890"]
[WhiteElo "2331"]
[BlackElo "2519"]
[Result "1/2-1/2"]
[Round "10"]
[TimeControl "180+2"]
[Date "2023.07.25"]
[WhiteClock "0:01:35"]
[BlackClock "0:00:16"]
[Board "138"]

1. e4 {[%clk 0:03:00]}  c5 {[%clk 0:02:54]} 2. Nf3 {[%clk 0:03:00]}  d6 {[%clk 0:02:54]} 3. Bb5+ {[%clk 0:03:00]}  Nc6 {[%clk 0:02:54]} 4. O-O {[%clk 0:02:57]}  Bd7 {[%clk 0:02:54]} 5. Re1 {[%clk 0:02:56]}  a6 {[%clk 0:02:54]} 6. Bf1 {[%clk 0:02:56]}  Bg4 {[%clk 0:02:54]} 7. c3 {[%clk 0:02:56]}  g6 {[%clk 0:02:55]} 8. h3 {[%clk 0:02:56]}  Bxf3 {[%clk 0:02:54]} 9. Qxf3 {[%clk 0:02:56]}  Bg7 {[%clk 0:02:55]} 10. d3 {[%clk 0:02:57]}  Nf6 {[%clk 0:02:56]} 11. Nd2 {[%clk 0:02:56]}  O-O {[%clk 0:02:56]} 12. a4 {[%clk 0:02:56]}  Rb8 {[%clk 0:02:52]} 13. Nc4 {[%clk 0:02:55]}  b5 {[%clk 0:02:51]} 14. axb5 {[%clk 0:02:55]}  axb5 {[%clk 0:02:52]} 15. Ne3 {[%clk 0:02:55]}  b4 {[%clk 0:02:50]} 16. Bd2 {[%clk 0:02:54]}  Nd7 {[%clk 0:02:40]} 17. Nc4 {[%clk 0:02:53]}  Nde5 {[%clk 0:02:34]} 18. Nxe5 {[%clk 0:02:52]}  Nxe5 {[%clk 0:02:35]} 19. Qg3 {[%clk 0:02:52]}  Nc6 {[%clk 0:02:32]} 20. f4 {[%clk 0:02:50]}  bxc3 {[%clk 0:02:31]} 21. bxc3 {[%clk 0:02:49]}  Rb2 {[%clk 0:02:32]} 22. Qe3 {[%clk 0:02:44]}  Nd4 {[%clk 0:02:24]} 23. Rab1 {[%clk 0:02:33]}  Nc2 {[%clk 0:02:23]} 24. Rxb2 {[%clk 0:02:33]}  Nxe3 {[%clk 0:02:22]} 25. Rxe3 {[%clk 0:02:34]}  Bxc3 {[%clk 0:02:23]} 26. Bxc3 {[%clk 0:02:32]}  Qa8 {[%clk 0:02:13]} 27. d4 {[%clk 0:02:31]}  cxd4 {[%clk 0:02:07]} 28. Bxd4 {[%clk 0:02:30]}  Qa4 {[%clk 0:02:08]} 29. Rd3 {[%clk 0:02:25]}  Rc8 {[%clk 0:01:46]} 30. Rbd2 {[%clk 0:02:22]}  Rc1 {[%clk 0:01:41]} 31. Kf2 {[%clk 0:02:22]}  h5 {[%clk 0:01:33]} 32. Be2 {[%clk 0:02:18]}  Rc2 {[%clk 0:01:30]} 33. Rxc2 {[%clk 0:02:14]}  Qxc2 {[%clk 0:01:31]} 34. e5 {[%clk 0:02:14]}  dxe5 {[%clk 0:01:28]} 35. Bxe5 {[%clk 0:02:14]}  f6 {[%clk 0:01:29]} 36. Bd4 {[%clk 0:02:11]}  Kf7 {[%clk 0:01:27]} 37. Be3 {[%clk 0:02:09]}  h4 {[%clk 0:01:21]} 38. Rd2 {[%clk 0:02:08]}  Qc6 {[%clk 0:01:19]} 39. Bf3 {[%clk 0:02:08]}  Qc1 {[%clk 0:01:17]} 40. Bd5+ {[%clk 0:02:07]}  Kg7 {[%clk 0:01:17]} 41. Be4 {[%clk 0:02:06]}  Qh1 {[%clk 0:01:16]} 42. Rd7 {[%clk 0:02:02]}  Qh2 {[%clk 0:01:15]} 43. Rxe7+ {[%clk 0:01:57]}  Kh6 {[%clk 0:01:16]} 44. f5+ {[%clk 0:01:55]}  g5 {[%clk 0:01:11]} 45. Bf3 {[%clk 0:01:53]}  Qg1+ {[%clk 0:00:41]} 46. Ke2 {[%clk 0:01:43]}  Qf1+ {[%clk 0:00:26]} 47. Kd2 {[%clk 0:01:40]}  Qd3+ {[%clk 0:00:18]} 48. Ke1 {[%clk 0:01:38]}  Qf1+ {[%clk 0:00:18]} 49. Kd2 {[%clk 0:01:38]}  Qd3+ {[%clk 0:00:19]} 50. Ke1 {[%clk 0:01:35]}  Qf1+ {[%clk 0:00:16]} 51. Kxf1 {[%clk 0:01:35]} 1/2-1/2


[Site "https://www.chess.com"]

[Event "Titled Tuesday Blitz July 25 Early 2023"]
[White "Vifleemskaia, Svetlana"]
[Black "Altman, Joshua"]
[WhiteFideId "4129490"]
[BlackFideId "426210"]
[WhiteElo "2321"]
[BlackElo "2504"]
[Result "0-1"]
[Round "10"]
[TimeControl "180+2"]
[Date "2023.07.25"]
[WhiteClock "0:00:11"]
[BlackClock "0:00:18"]
[Board "139"]

1. d4 {[%clk 0:02:44]}  c5 {[%clk 0:02:54]} 2. d5 {[%clk 0:02:43]}  Nf6 {[%clk 0:02:54]} 3. Nc3 {[%clk 0:02:44]}  g6 {[%clk 0:02:53]} 4. e4 {[%clk 0:02:45]}  d6 {[%clk 0:02:54]} 5. Bb5+ {[%clk 0:02:45]}  Bd7 {[%clk 0:02:54]} 6. a4 {[%clk 0:02:46]}  a6 {[%clk 0:02:54]} 7. Bd3 {[%clk 0:02:45]}  Bg7 {[%clk 0:02:54]} 8. h3 {[%clk 0:02:45]}  O-O {[%clk 0:02:53]} 9. Nf3 {[%clk 0:02:45]}  e6 {[%clk 0:02:54]} 10. O-O {[%clk 0:02:44]}  exd5 {[%clk 0:02:54]} 11. exd5 {[%clk 0:02:45]}  Ne8 {[%clk 0:02:38]} 12. Bg5 {[%clk 0:02:42]}  f6 {[%clk 0:02:30]} 13. Bf4 {[%clk 0:02:41]}  f5 {[%clk 0:02:15]} 14. Re1 {[%clk 0:02:37]}  h6 {[%clk 0:02:13]} 15. Nd2 {[%clk 0:02:23]}  Bc8 {[%clk 0:02:06]} 16. Nc4 {[%clk 0:02:21]}  g5 {[%clk 0:02:00]} 17. Bd2 {[%clk 0:02:17]}  Nd7 {[%clk 0:01:57]} 18. Qh5 {[%clk 0:02:14]}  Rb8 {[%clk 0:01:31]} 19. Ne3 {[%clk 0:01:57]}  Nef6 {[%clk 0:01:27]} 20. Qg6 {[%clk 0:01:56]}  Ne5 {[%clk 0:01:28]} 21. Bxf5 {[%clk 0:01:44]}  Nxg6 {[%clk 0:01:27]} 22. Bxg6 {[%clk 0:01:43]}  b5 {[%clk 0:01:23]} 23. axb5 {[%clk 0:01:42]}  axb5 {[%clk 0:01:24]} 24. Nf5 {[%clk 0:01:37]}  Bxf5 {[%clk 0:01:21]} 25. Bxf5 {[%clk 0:01:36]}  b4 {[%clk 0:01:21]} 26. Be6+ {[%clk 0:01:35]}  Kh8 {[%clk 0:01:21]} 27. Ne2 {[%clk 0:01:33]}  Ne4 {[%clk 0:01:19]} 28. Be3 {[%clk 0:01:29]}  Bxb2 {[%clk 0:01:18]} 29. Ra7 {[%clk 0:01:28]}  Qf6 {[%clk 0:01:04]} 30. f3 {[%clk 0:01:25]}  Nc3 {[%clk 0:00:58]} 31. Ng3 {[%clk 0:01:25]}  Ra8 {[%clk 0:00:48]} 32. Rd7 {[%clk 0:01:22]}  Rfd8 {[%clk 0:00:31]} 33. Rf7 {[%clk 0:01:21]}  Qg6 {[%clk 0:00:29]} 34. Nf5 {[%clk 0:00:53]}  Rf8 {[%clk 0:00:25]} 35. Ne7 {[%clk 0:00:52]}  Qxf7 {[%clk 0:00:16]} 36. Bxf7 {[%clk 0:00:51]}  Rxf7 {[%clk 0:00:17]} 37. Nc6 {[%clk 0:00:46]}  Ra1 {[%clk 0:00:16]} 38. Rxa1 {[%clk 0:00:42]}  Bxa1 {[%clk 0:00:17]} 39. Nd8 {[%clk 0:00:36]}  Rd7 {[%clk 0:00:16]} 40. Ne6 {[%clk 0:00:31]}  Nxd5 {[%clk 0:00:16]} 41. Bd2 {[%clk 0:00:26]}  c4 {[%clk 0:00:15]} 42. Kf2 {[%clk 0:00:23]}  b3 {[%clk 0:00:15]} 43. cxb3 {[%clk 0:00:21]}  cxb3 {[%clk 0:00:16]} 44. Bc1 {[%clk 0:00:21]}  b2 {[%clk 0:00:16]} 45. Bxb2+ {[%clk 0:00:22]}  Bxb2 {[%clk 0:00:17]} 46. g3 {[%clk 0:00:20]}  Re7 {[%clk 0:00:18]} 47. Nd8 {[%clk 0:00:19]}  Bd4+ {[%clk 0:00:18]} 48. Kg2 {[%clk 0:00:19]}  Ne3+ {[%clk 0:00:18]} 49. Kh1 {[%clk 0:00:18]}  Nf1 {[%clk 0:00:17]} 50. Kg2 {[%clk 0:00:17]}  Nd2 {[%clk 0:00:17]} 51. Nc6 {[%clk 0:00:14]}  Re2+ {[%clk 0:00:17]} 52. Kh1 {[%clk 0:00:11]}  Nxf3 {[%clk 0:00:18]} 0-1


[Site "https://www.chess.com"]

[Event "Titled Tuesday Blitz July 25 Early 2023"]
[White "Rodriguez Fontecha, Marcos"]
[Black "AndresDelgado77"]
[WhiteFideId "2256576"]
[WhiteElo "2459"]
[BlackElo "2288"]
[Result "0-1"]
[Round "10"]
[TimeControl "180+2"]
[Date "2023.07.25"]
[WhiteClock "0:00:00"]
[BlackClock "0:00:16"]
[Board "142"]

1. e4 {[%clk 0:03:00]}  e6 {[%clk 0:02:57]} 2. d4 {[%clk 0:03:00]}  d5 {[%clk 0:02:57]} 3. Nc3 {[%clk 0:03:00]}  Nf6 {[%clk 0:02:56]} 4. Bg5 {[%clk 0:02:59]}  Bb4 {[%clk 0:02:56]} 5. e5 {[%clk 0:02:59]}  h6 {[%clk 0:02:56]} 6. Be3 {[%clk 0:02:57]}  Ne4 {[%clk 0:02:55]} 7. Qg4 {[%clk 0:02:50]}  Kf8 {[%clk 0:02:55]} 8. a3 {[%clk 0:02:44]}  Bxc3+ {[%clk 0:02:55]} 9. bxc3 {[%clk 0:02:43]}  c5 {[%clk 0:02:55]} 10. Bd3 {[%clk 0:02:27]}  Qa5 {[%clk 0:02:52]} 11. Bd2 {[%clk 0:02:14]}  Nxd2 {[%clk 0:02:38]} 12. Kxd2 {[%clk 0:02:14]}  Nc6 {[%clk 0:02:28]} 13. Nf3 {[%clk 0:01:57]}  cxd4 {[%clk 0:02:22]} 14. Rab1 {[%clk 0:01:50]}  dxc3+ {[%clk 0:01:56]} 15. Ke2 {[%clk 0:01:39]}  Qxa3 {[%clk 0:01:53]} 16. h4 {[%clk 0:01:35]}  b6 {[%clk 0:01:25]} 17. Rb3 {[%clk 0:01:13]}  Qa5 {[%clk 0:01:24]} 18. Rh3 {[%clk 0:01:02]}  Ba6 {[%clk 0:01:20]} 19. Rg3 {[%clk 0:00:25]}  Rg8 {[%clk 0:01:19]} 20. Bxa6 {[%clk 0:00:21]}  Qxa6+ {[%clk 0:01:18]} 21. Ke1 {[%clk 0:00:20]}  Rc8 {[%clk 0:01:04]} 22. Qf4 {[%clk 0:00:19]}  Qa1+ {[%clk 0:00:50]} 23. Ke2 {[%clk 0:00:18]}  Qa6+ {[%clk 0:00:32]} 24. Ke1 {[%clk 0:00:18]}  Ne7 {[%clk 0:00:32]} 25. Nd4 {[%clk 0:00:17]}  Ke8 {[%clk 0:00:28]} 26. Rf3 {[%clk 0:00:16]}  Rf8 {[%clk 0:00:27]} 27. Nxe6 {[%clk 0:00:15]}  Qa1+ {[%clk 0:00:22]} 28. Ke2 {[%clk 0:00:14]}  Qa6+ {[%clk 0:00:23]} 29. Ke1 {[%clk 0:00:08]}  Rc4 {[%clk 0:00:20]} 30. Nxg7+ {[%clk 0:00:06]}  Kd8 {[%clk 0:00:20]} 31. Qc1 {[%clk 0:00:03]}  Ra4 {[%clk 0:00:17]} 32. Rb1 {[%clk 0:00:00]}  Re4+ {[%clk 0:00:16]} 0-1


[Site "https://www.chess.com"]

[Event "Titled Tuesday Blitz July 25 Early 2023"]
[White "rikchessmx"]
[Black "Begunov, Konstantin"]
[BlackFideId "4118510"]
[WhiteElo "2265"]
[BlackElo "2407"]
[Result "1-0"]
[Round "10"]
[TimeControl "180+2"]
[Date "2023.07.25"]
[WhiteClock "0:00:58"]
[BlackClock "0:00:11"]
[Board "146"]

1. e4 {[%clk 0:02:52]}  c5 {[%clk 0:02:59]} 2. Nf3 {[%clk 0:02:32]}  d6 {[%clk 0:03:00]} 3. d4 {[%clk 0:02:31]}  cxd4 {[%clk 0:03:01]} 4. Nxd4 {[%clk 0:02:31]}  Nf6 {[%clk 0:03:01]} 5. Nc3 {[%clk 0:02:32]}  a6 {[%clk 0:03:02]} 6. f4 {[%clk 0:02:33]}  e5 {[%clk 0:03:02]} 7. Nf3 {[%clk 0:02:33]}  Nbd7 {[%clk 0:03:02]} 8. Bd3 {[%clk 0:02:33]}  b5 {[%clk 0:03:01]} 9. a3 {[%clk 0:02:33]}  Bb7 {[%clk 0:03:01]} 10. O-O {[%clk 0:02:32]}  Be7 {[%clk 0:03:02]} 11. Qe1 {[%clk 0:02:32]}  O-O {[%clk 0:03:01]} 12. Kh1 {[%clk 0:02:30]}  Re8 {[%clk 0:03:01]} 13. fxe5 {[%clk 0:02:29]}  Nxe5 {[%clk 0:02:59]} 14. Nd4 {[%clk 0:02:30]}  d5 {[%clk 0:02:16]} 15. exd5 {[%clk 0:02:20]}  Nxd3 {[%clk 0:02:09]} 16. cxd3 {[%clk 0:02:19]}  Bc5 {[%clk 0:01:49]} 17. Nde2 {[%clk 0:02:19]}  Nxd5 {[%clk 0:01:44]} 18. Qg3 {[%clk 0:02:17]}  Ne3 {[%clk 0:01:36]} 19. Bxe3 {[%clk 0:02:13]}  Rxe3 {[%clk 0:01:35]} 20. Qf4 {[%clk 0:02:13]}  Qe7 {[%clk 0:01:31]} 21. d4 {[%clk 0:02:12]}  Bd6 {[%clk 0:01:24]} 22. Qg4 {[%clk 0:02:12]}  Bc8 {[%clk 0:00:59]} 23. Qh5 {[%clk 0:01:54]}  g6 {[%clk 0:00:59]} 24. Qd5 {[%clk 0:01:51]}  Bb7 {[%clk 0:00:56]} 25. Qb3 {[%clk 0:01:50]}  Rxe2 {[%clk 0:00:54]} 26. Nxe2 {[%clk 0:01:50]}  Qxe2 {[%clk 0:00:55]} 27. Qxf7+ {[%clk 0:01:49]}  Kh8 {[%clk 0:00:53]} 28. Qxb7 {[%clk 0:01:49]}  Rd8 {[%clk 0:00:45]} 29. Qb6 {[%clk 0:01:41]}  Qe7 {[%clk 0:00:40]} 30. Rf7 {[%clk 0:01:14]}  Qh4 {[%clk 0:00:34]} 31. h3 {[%clk 0:01:08]}  Rf8 {[%clk 0:00:14]} 32. Rxf8+ {[%clk 0:01:04]}  Bxf8 {[%clk 0:00:15]} 33. d5 {[%clk 0:00:58]}  Qf4 {[%clk 0:00:13]} 34. Rd1 {[%clk 0:00:56]}  Bd6 {[%clk 0:00:13]} 35. Qd4+ {[%clk 0:00:57]}  Qxd4 {[%clk 0:00:12]} 36. Rxd4 {[%clk 0:00:58]}  Kg7 {[%clk 0:00:12]} 37. Re4 {[%clk 0:00:58]}  Kf6 {[%clk 0:00:11]} 38. Re6+ {[%clk 0:00:58]} 1-0


[Site "https://www.chess.com"]

[Event "Titled Tuesday Blitz July 25 Early 2023"]
[White "Kiseljova, Marya"]
[Black "Ramirez Vido, Robert Yorisan"]
[WhiteFideId "4155009"]
[BlackFideId "3513823"]
[WhiteElo "2154"]
[BlackElo "2379"]
[Result "1/2-1/2"]
[Round "10"]
[TimeControl "180+2"]
[Date "2023.07.25"]
[WhiteClock "0:00:16"]
[BlackClock "0:00:10"]
[Board "149"]

1. d4 {[%clk 0:03:00]}  g6 {[%clk 0:02:55]} 2. c4 {[%clk 0:03:00]}  Nf6 {[%clk 0:02:55]} 3. Nc3 {[%clk 0:02:59]}  Bg7 {[%clk 0:02:55]} 4. e4 {[%clk 0:02:59]}  d6 {[%clk 0:02:56]} 5. Bg5 {[%clk 0:02:57]}  O-O {[%clk 0:02:54]} 6. Be2 {[%clk 0:02:57]}  c5 {[%clk 0:02:51]} 7. d5 {[%clk 0:02:53]}  e6 {[%clk 0:02:45]} 8. Nf3 {[%clk 0:02:49]}  h6 {[%clk 0:02:39]} 9. Bh4 {[%clk 0:02:43]}  Qb6 {[%clk 0:02:39]} 10. Qd2 {[%clk 0:02:40]}  e5 {[%clk 0:02:33]} 11. O-O {[%clk 0:02:24]}  g5 {[%clk 0:02:31]} 12. Bg3 {[%clk 0:02:24]}  Nh5 {[%clk 0:02:28]} 13. b3 {[%clk 0:02:18]}  f5 {[%clk 0:02:26]} 14. exf5 {[%clk 0:02:11]}  Bxf5 {[%clk 0:02:23]} 15. Rac1 {[%clk 0:02:03]}  Nd7 {[%clk 0:02:11]} 16. Bd3 {[%clk 0:02:00]}  Bxd3 {[%clk 0:01:55]} 17. Qxd3 {[%clk 0:02:00]}  Nf4 {[%clk 0:01:56]} 18. Bxf4 {[%clk 0:02:00]}  exf4 {[%clk 0:01:55]} 19. Ne4 {[%clk 0:01:55]}  Rae8 {[%clk 0:01:52]} 20. Rfe1 {[%clk 0:01:55]}  Re7 {[%clk 0:01:42]} 21. h3 {[%clk 0:01:49]}  Rfe8 {[%clk 0:01:39]} 22. Ned2 {[%clk 0:01:39]}  Qa5 {[%clk 0:01:35]} 23. Rxe7 {[%clk 0:01:37]}  Rxe7 {[%clk 0:01:36]} 24. a4 {[%clk 0:01:29]}  Ne5 {[%clk 0:01:23]} 25. Nxe5 {[%clk 0:01:28]}  Rxe5 {[%clk 0:01:24]} 26. Ne4 {[%clk 0:01:25]}  Qd8 {[%clk 0:01:07]} 27. Nd2 {[%clk 0:01:08]}  Qe8 {[%clk 0:01:05]} 28. Nf3 {[%clk 0:01:08]}  Re2 {[%clk 0:01:02]} 29. Kf1 {[%clk 0:00:56]}  Rb2 {[%clk 0:00:47]} 30. Re1 {[%clk 0:00:54]}  Qf7 {[%clk 0:00:48]} 31. Re2 {[%clk 0:00:45]}  Qf6 {[%clk 0:00:40]} 32. Rxb2 {[%clk 0:00:36]}  Qxb2 {[%clk 0:00:40]} 33. g3 {[%clk 0:00:35]}  fxg3 {[%clk 0:00:37]} 34. fxg3 {[%clk 0:00:35]}  a6 {[%clk 0:00:19]} 35. Qe3 {[%clk 0:00:22]}  Qb1+ {[%clk 0:00:12]} 36. Kg2 {[%clk 0:00:21]}  Qc2+ {[%clk 0:00:13]} 37. Kf1 {[%clk 0:00:19]}  Qf5 {[%clk 0:00:13]} 38. Ke2 {[%clk 0:00:16]}  Qxh3 {[%clk 0:00:11]} 39. Qe8+ {[%clk 0:00:16]}  Kh7 {[%clk 0:00:12]} 40. Qe4+ {[%clk 0:00:16]}  Kg8 {[%clk 0:00:11]} 41. Qe8+ {[%clk 0:00:16]}  Bf8 {[%clk 0:00:09]} 42. Qg6+ {[%clk 0:00:16]}  Bg7 {[%clk 0:00:10]} 43. Qe8+ {[%clk 0:00:16]} 1/2-1/2


[Site "https://www.chess.com"]

[Event "Titled Tuesday Blitz July 25 Early 2023"]
[White "FREDERICKtheMATE"]
[Black "Goughfather"]
[WhiteElo "2361"]
[BlackElo "2069"]
[Result "1-0"]
[Round "10"]
[TimeControl "180+2"]
[Date "2023.07.25"]
[WhiteClock "0:00:02"]
[BlackClock "0:00:00"]
[Board "151"]

1. Nf3 {[%clk 0:03:00]}  Nf6 {[%clk 0:02:58]} 2. d4 {[%clk 0:03:01]}  d5 {[%clk 0:02:58]} 3. g3 {[%clk 0:03:02]}  c6 {[%clk 0:02:58]} 4. Bg2 {[%clk 0:03:02]}  Bg4 {[%clk 0:02:56]} 5. O-O {[%clk 0:03:03]}  e6 {[%clk 0:02:54]} 6. c4 {[%clk 0:03:02]}  Nbd7 {[%clk 0:02:54]} 7. b3 {[%clk 0:03:02]}  Bd6 {[%clk 0:02:50]} 8. Bb2 {[%clk 0:03:02]}  Qe7 {[%clk 0:02:47]} 9. Nbd2 {[%clk 0:03:02]}  O-O {[%clk 0:02:44]} 10. Ne5 {[%clk 0:03:02]}  Bf5 {[%clk 0:02:43]} 11. h3 {[%clk 0:02:52]}  h6 {[%clk 0:02:42]} 12. Re1 {[%clk 0:02:49]}  Bb4 {[%clk 0:02:33]} 13. a3 {[%clk 0:02:45]}  Ba5 {[%clk 0:02:33]} 14. b4 {[%clk 0:02:44]}  Bc7 {[%clk 0:02:33]} 15. c5 {[%clk 0:02:44]}  Nxe5 {[%clk 0:02:18]} 16. dxe5 {[%clk 0:02:39]}  Nd7 {[%clk 0:02:18]} 17. f4 {[%clk 0:02:38]}  a5 {[%clk 0:02:12]} 18. e4 {[%clk 0:02:36]}  Bh7 {[%clk 0:02:04]} 19. Nb3 {[%clk 0:02:19]}  b6 {[%clk 0:01:42]} 20. exd5 {[%clk 0:02:16]}  exd5 {[%clk 0:01:39]} 21. Nd4 {[%clk 0:02:07]}  Nb8 {[%clk 0:01:23]} 22. Rc1 {[%clk 0:01:42]}  axb4 {[%clk 0:01:18]} 23. axb4 {[%clk 0:01:43]}  bxc5 {[%clk 0:01:18]} 24. bxc5 {[%clk 0:01:41]}  Re8 {[%clk 0:00:51]} 25. Qb3 {[%clk 0:01:27]}  Ba5 {[%clk 0:00:42]} 26. Re3 {[%clk 0:01:20]}  Ra7 {[%clk 0:00:42]} 27. f5 {[%clk 0:01:04]}  Bd2 {[%clk 0:00:37]} 28. Rce1 {[%clk 0:00:18]}  Qxc5 {[%clk 0:00:15]} 29. f6 {[%clk 0:00:13]}  Bxe1 {[%clk 0:00:08]} 30. Rxe1 {[%clk 0:00:13]}  Nd7 {[%clk 0:00:07]} 31. Rc1 {[%clk 0:00:10]}  Qa5 {[%clk 0:00:05]} 32. Nxc6 {[%clk 0:00:09]}  Qb6+ {[%clk 0:00:05]} 33. Qxb6 {[%clk 0:00:07]}  Nxb6 {[%clk 0:00:06]} 34. Ne7+ {[%clk 0:00:07]}  Kf8 {[%clk 0:00:04]} 35. Bd4 {[%clk 0:00:06]}  Rb7 {[%clk 0:00:04]} 36. Rc6 {[%clk 0:00:03]}  Nd7 {[%clk 0:00:03]} 37. Bxd5 {[%clk 0:00:02]}  gxf6 {[%clk 0:00:03]} 38. exf6 {[%clk 0:00:02]}  Nxf6 {[%clk 0:00:03]} 39. Bxf6 {[%clk 0:00:01]}  Rbxe7 {[%clk 0:00:04]} 40. Bxe7+ {[%clk 0:00:02]}  Rxe7 {[%clk 0:00:04]} 41. Rxh6 {[%clk 0:00:03]}  Kg7 {[%clk 0:00:05]} 42. Rc6 {[%clk 0:00:02]}  Bg6 {[%clk 0:00:05]} 43. Bg2 {[%clk 0:00:02]}  Re5 {[%clk 0:00:06]} 44. Kf2 {[%clk 0:00:03]}  Ra5 {[%clk 0:00:06]} 45. Rc3 {[%clk 0:00:02]}  Ra2+ {[%clk 0:00:06]} 46. Kf3 {[%clk 0:00:02]}  Rb2 {[%clk 0:00:07]} 47. g4 {[%clk 0:00:03]}  Rd2 {[%clk 0:00:07]} 48. Kg3 {[%clk 0:00:03]}  Rd3+ {[%clk 0:00:07]} 49. Rxd3 {[%clk 0:00:03]}  Bxd3 {[%clk 0:00:08]} 50. Kf4 {[%clk 0:00:03]}  Kh8 {[%clk 0:00:08]} 51. h4 {[%clk 0:00:04]}  Kg7 {[%clk 0:00:08]} 52. h5 {[%clk 0:00:04]}  Be2 {[%clk 0:00:08]} 53. Bf3 {[%clk 0:00:04]}  Bf1 {[%clk 0:00:08]} 54. g5 {[%clk 0:00:02]}  Bd3 {[%clk 0:00:08]} 55. h6+ {[%clk 0:00:02]}  Kh8 {[%clk 0:00:08]} 56. Be4 {[%clk 0:00:01]}  Be2 {[%clk 0:00:07]} 57. Ke5 {[%clk 0:00:02]}  Bh5 {[%clk 0:00:07]} 58. Kf6 {[%clk 0:00:02]}  Kg8 {[%clk 0:00:07]} 59. Bd5 {[%clk 0:00:03]}  Bg6 {[%clk 0:00:06]} 60. Bc4 {[%clk 0:00:03]}  Kf8 {[%clk 0:00:05]} 61. Bxf7 {[%clk 0:00:01]}  Bh7 {[%clk 0:00:05]} 62. g6 {[%clk 0:00:01]}  Bxg6 {[%clk 0:00:00]} 63. Bxg6 {[%clk 0:00:02]} 1-0


[Site "https://www.chess.com"]

[Event "Titled Tuesday Blitz July 25 Early 2023"]
[White "Herman, Daniel"]
[Black "KSho99"]
[WhiteFideId "30935008"]
[WhiteElo "2398"]
[BlackElo "2208"]
[Result "1-0"]
[Round "10"]
[TimeControl "180+2"]
[Date "2023.07.25"]
[WhiteClock "0:00:07"]
[BlackClock "0:00:00"]
[Board "154"]

1. c4 {[%clk 0:02:55]}  Nf6 {[%clk 0:02:53]} 2. Nc3 {[%clk 0:02:54]}  e5 {[%clk 0:02:51]} 3. Nf3 {[%clk 0:02:53]}  d6 {[%clk 0:02:41]} 4. d4 {[%clk 0:02:52]}  exd4 {[%clk 0:02:37]} 5. Nxd4 {[%clk 0:02:52]}  g6 {[%clk 0:02:37]} 6. g3 {[%clk 0:02:50]}  Bg7 {[%clk 0:02:36]} 7. Bg2 {[%clk 0:02:50]}  O-O {[%clk 0:02:36]} 8. O-O {[%clk 0:02:50]}  Re8 {[%clk 0:02:34]} 9. b3 {[%clk 0:02:35]}  c6 {[%clk 0:02:12]} 10. Bb2 {[%clk 0:02:31]}  Qc7 {[%clk 0:02:04]} 11. Qd2 {[%clk 0:02:18]}  Na6 {[%clk 0:01:55]} 12. Rad1 {[%clk 0:02:00]}  Nc5 {[%clk 0:01:48]} 13. Qf4 {[%clk 0:01:34]}  Nh5 {[%clk 0:00:51]} 14. Qf3 {[%clk 0:01:16]}  Ne6 {[%clk 0:00:39]} 15. Nc2 {[%clk 0:00:58]}  Ng5 {[%clk 0:00:24]} 16. Qd3 {[%clk 0:00:57]}  Bf5 {[%clk 0:00:19]} 17. Qd2 {[%clk 0:00:26]}  Ne4 {[%clk 0:00:16]} 18. Nxe4 {[%clk 0:00:17]}  Bxb2 {[%clk 0:00:16]} 19. Nxd6 {[%clk 0:00:16]}  Red8 {[%clk 0:00:10]} 20. Nd4 {[%clk 0:00:13]}  Bxd4 {[%clk 0:00:07]} 21. Qxd4 {[%clk 0:00:13]}  Ng7 {[%clk 0:00:06]} 22. c5 {[%clk 0:00:07]}  Ne6 {[%clk 0:00:05]} 23. Qe5 {[%clk 0:00:07]}  Rd7 {[%clk 0:00:02]} 24. e4 {[%clk 0:00:07]}  Bg4 {[%clk 0:00:01]} 25. f3 {[%clk 0:00:07]}  Bh5 {[%clk 0:00:01]} 26. g4 {[%clk 0:00:07]}  Rad8 {[%clk 0:00:00]} 27. b4 {[%clk 0:00:07]} 1-0


[Site "https://www.chess.com"]

[Event "Titled Tuesday Blitz July 25 Early 2023"]
[White "UgarteCesar"]
[Black "Hrescak, Ivana"]
[BlackFideId "14613441"]
[WhiteElo "2286"]
[BlackElo "2136"]
[Result "1/2-1/2"]
[Round "10"]
[TimeControl "180+2"]
[Date "2023.07.25"]
[WhiteClock "0:00:17"]
[BlackClock "0:00:27"]
[Board "156"]

1. d4 {[%clk 0:03:00]}  d5 {[%clk 0:03:00]} 2. Bf4 {[%clk 0:03:00]}  Nf6 {[%clk 0:02:56]} 3. e3 {[%clk 0:03:00]}  c5 {[%clk 0:02:55]} 4. Nf3 {[%clk 0:03:00]}  Nc6 {[%clk 0:02:55]} 5. c3 {[%clk 0:03:00]}  Bg4 {[%clk 0:02:50]} 6. Be2 {[%clk 0:03:00]}  e6 {[%clk 0:02:49]} 7. Nbd2 {[%clk 0:03:00]}  Bd6 {[%clk 0:02:49]} 8. Ne5 {[%clk 0:03:00]}  Bxe2 {[%clk 0:02:46]} 9. Qxe2 {[%clk 0:03:01]}  Bxe5 {[%clk 0:02:43]} 10. dxe5 {[%clk 0:03:01]}  Nd7 {[%clk 0:02:43]} 11. Nf3 {[%clk 0:03:00]}  h6 {[%clk 0:02:36]} 12. h3 {[%clk 0:02:59]}  g5 {[%clk 0:02:31]} 13. Bh2 {[%clk 0:02:59]}  h5 {[%clk 0:02:32]} 14. e4 {[%clk 0:02:37]}  g4 {[%clk 0:02:24]} 15. hxg4 {[%clk 0:02:31]}  hxg4 {[%clk 0:02:23]} 16. Nd2 {[%clk 0:02:31]}  Ndxe5 {[%clk 0:02:15]} 17. exd5 {[%clk 0:02:31]}  Qxd5 {[%clk 0:02:14]} 18. O-O-O {[%clk 0:02:31]}  Qxg2 {[%clk 0:01:33]} 19. Rdg1 {[%clk 0:00:56]}  Qd5 {[%clk 0:01:33]} 20. Bxe5 {[%clk 0:00:49]}  Rxh1 {[%clk 0:01:31]} 21. Rxh1 {[%clk 0:00:42]}  Qxh1+ {[%clk 0:01:31]} 22. Kc2 {[%clk 0:00:41]}  Qd5 {[%clk 0:01:17]} 23. Bf6 {[%clk 0:00:38]}  Qf5+ {[%clk 0:01:11]} 24. Ne4 {[%clk 0:00:35]}  Ne7 {[%clk 0:00:40]} 25. Qb5+ {[%clk 0:00:20]}  Nc6 {[%clk 0:00:28]} 26. Qe2 {[%clk 0:00:17]}  Ne7 {[%clk 0:00:28]} 27. Qb5+ {[%clk 0:00:17]}  Nc6 {[%clk 0:00:27]} 28. Qe2 {[%clk 0:00:17]} 1/2-1/2


[Site "https://www.chess.com"]

[Event "Titled Tuesday Blitz July 25 Early 2023"]
[White "Graham, Nathaniel"]
[Black "Khouri, Ahmed Abbas"]
[WhiteFideId "2007983"]
[BlackFideId "9301518"]
[WhiteElo "1997"]
[BlackElo "2227"]
[Result "0-1"]
[Round "10"]
[TimeControl "180+2"]
[Date "2023.07.25"]
[WhiteClock "0:00:00"]
[BlackClock "0:02:33"]
[Board "158"]

1. e4 {[%clk 0:03:00]}  d5 {[%clk 0:02:59]} 2. exd5 {[%clk 0:03:00]}  Qxd5 {[%clk 0:03:00]} 3. Nc3 {[%clk 0:03:00]}  Qd6 {[%clk 0:03:01]} 4. Bc4 {[%clk 0:03:00]}  Nf6 {[%clk 0:03:01]} 5. d4 {[%clk 0:02:54]}  c6 {[%clk 0:03:01]} 6. Nf3 {[%clk 0:02:53]}  Bg4 {[%clk 0:03:01]} 7. Be3 {[%clk 0:02:45]}  Nbd7 {[%clk 0:03:00]} 8. h3 {[%clk 0:02:44]}  Bh5 {[%clk 0:03:00]} 9. Qe2 {[%clk 0:02:43]}  e6 {[%clk 0:03:00]} 10. O-O-O {[%clk 0:02:42]}  b5 {[%clk 0:03:00]} 11. Bb3 {[%clk 0:02:25]}  a5 {[%clk 0:02:59]} 12. a4 {[%clk 0:02:24]}  bxa4 {[%clk 0:02:58]} 13. Nxa4 {[%clk 0:02:17]}  Be7 {[%clk 0:02:57]} 14. g4 {[%clk 0:01:49]}  Bg6 {[%clk 0:02:57]} 15. Qd2 {[%clk 0:01:12]}  O-O {[%clk 0:02:51]} 16. Bf4 {[%clk 0:01:10]}  Qb4 {[%clk 0:02:47]} 17. Ne5 {[%clk 0:01:07]}  Qb7 {[%clk 0:02:40]} 18. h4 {[%clk 0:00:59]}  Be4 {[%clk 0:02:36]} 19. f3 {[%clk 0:00:43]}  Bd5 {[%clk 0:02:36]} 20. Bxd5 {[%clk 0:00:11]}  Nxd5 {[%clk 0:02:36]} 21. Nxd7 {[%clk 0:00:06]}  Qxd7 {[%clk 0:02:37]} 22. Be5 {[%clk 0:00:00]}  c5 {[%clk 0:02:33]} 0-1


[Site "https://www.chess.com"]